bitfinex/quotes_ETHUSD_20240729
["timestamp","ask_amount","ask_price","bid_price","bid_amount"]
[1722275136437,2.389,3316.3,3315.3,3.31941]
[1722275136636,2.389,3316.3,3315.4,3.04590818]
[1722275136811,2.389,3316.3,3315.6,3.01597]
[1722275137137,2.389,3316.3,3315.8,3.01582]
[1722275137436,2.389,3316.3,3315.9,0.06030427]
[1722275137607,2.389,3316.3,3316.0,0.55]
[1722275137931,2.389,3316.3,3316.1,0.06030429]
[1722275138131,2.389,3316.3,3316.2,0.55]
[1722275138891,2.389,3316.3,3315.9,0.55]
[1722275139407,2.389,3316.3,3316.0,0.06030664]
[1722275139610,2.389,3316.3,3316.1,0.55]
[1722275140737,2.3546,3316.7,3316.2,0.06030475]
[1722275141092,2.3546,3316.7,3316.3,0.91258848]
[1722275141352,0.09369803,3317.2,3316.4,3.07560667]
[1722275141642,2.3546,3317.1,3316.6,3.01506]
[1722275141796,2.3546,3317.1,3316.8,3.01487]
[1722275141995,0.09369803,3317.2,3316.9,3.6251355]
[1722275142238,0.09369803,3317.2,3317.0,0.36251355]
[1722275142438,0.09369803,3317.2,3317.1,0.06028343]
[1722275142661,0.09369803,3317.2,3317.1,0.61028343]
[1722275143094,0.09369803,3317.2,3317.1,3.92806343]
[1722275143294,0.09369803,3317.2,3317.1,15.33131481]
[1722275143533,0.14541,3317.7,3317.6,17.64478]
[1722275143534,1e-05,3317.7,3317.6,17.64478]
[1722275143873,3.09e-06,3317.9,3317.8,1.5]
[1722275144044,3.09e-06,3317.9,3317.8,20.04746186]
[1722275144367,3.09e-06,3317.9,3317.8,26.22366847]
[1722275144544,3.09e-06,3317.9,3317.8,27.69966634]
[1722275144752,2.3596,3319.4,3317.8,27.69966634]
[1722275144753,0.005,3319.4,3319.3,3.01268]
[1722275144963,0.005,3319.4,3319.3,0.55]
[1722275145330,2.3596,3319.4,3319.3,0.55]
[1722275146138,2.3596,3319.4,3319.3,3.01268]
[1722275146139,0.005,3319.4,3319.3,3.01268]
[1722275146445,0.005,3319.4,3319.3,0.06024225]
[1722275146770,0.005,3319.4,3319.3,0.61024225]
[1722275147337,0.005,3319.4,3319.3,0.55]
[1722275147534,2.4654,3319.4,3319.3,0.55]
[1722275148233,2.4654,3319.4,3318.4,7.34]
[1722275148472,2.4654,3319.4,3318.5,0.0602559]
[1722275148629,2.4654,3319.4,3318.6,3.01324]
[1722275148834,2.4654,3319.4,3318.7,0.06025148]
[1722275149071,2.4654,3319.4,3318.7,3.07346148]
[1722275149369,2.4654,3319.4,3318.8,3.32047615]
[1722275149750,2.4654,3319.4,3318.9,0.61025149]
[1722275150536,2.4654,3319.4,3318.9,0.55]
[1722275150732,2.4654,3319.4,3319.0,0.0602515]
[1722275150994,2.4654,3319.4,3319.1,3.56284]
[1722275151199,2.4654,3319.4,3319.2,0.4225562]
[1722275151382,2.4654,3319.4,3319.3,0.61024706]
[1722275151782,0.005,3319.4,3319.3,0.61024706]
[1722275152962,0.005,3319.4,3319.3,0.61024259]
[1722275153586,0.005,3319.4,3319.3,0.55]
[1722275153788,0.005,3319.4,3319.0,0.55]
[1722275153990,0.005,3319.4,3318.9,0.55]
[1722275154392,0.005,3319.4,3319.0,0.06025084]
[1722275154667,0.005,3319.4,3319.1,0.55]
[1722275155093,0.005,3319.4,3317.6,8.42674]
[1722275155094,0.005,3319.4,3318.4,3.01342]
[1722275155292,2.3908,3319.3,3318.5,3.0]
[1722275155607,2.3908,3319.3,3318.6,0.06025452]
[1722275155803,2.63038,3319.3,3318.4,0.3031]
[1722275156024,2.63038,3319.3,3317.9,3.01393]
[1722275156025,5.64306,3319.3,3317.9,3.01393]
[1722275156184,2.63038,3319.3,3317.9,3.01393]
[1722275156504,2.63038,3319.3,3317.9,3.315323]
[1722275156505,0.263538,3319.2,3317.9,3.315323]
[1722275156676,0.263538,3319.2,3317.9,0.301393]
[1722275156884,3.276368,3319.2,3317.9,0.301393]
[1722275157282,0.263538,3319.2,3317.9,0.301393]
[1722275157482,0.263538,3319.2,3318.0,3.01385]
[1722275157778,0.2893918,3319.1,3318.0,0.3618343]
[1722275157976,0.2893918,3319.1,3318.0,3.3756843]
[1722275158177,0.2893918,3319.1,3318.0,3.3756143]
[1722275158381,2.63038,3319.3,3318.4,3.01349]
[1722275158382,2.3908,3319.3,3318.4,3.01349]
[1722275158632,2.3908,3319.3,3318.5,0.0602573]
[1722275158831,2.3908,3319.3,3318.6,0.55]
[1722275158986,2.3908,3319.3,3318.3,0.55]
[1722275159529,2.3908,3319.3,3318.3,3.56358]
[1722275159692,2.3908,3319.3,3318.3,4.251624]
[1722275160315,2.3908,3319.3,3318.4,3.01342]
[1722275160522,2.3908,3319.3,3318.3,1.541144]
[1722275160523,2.3908,3319.3,3318.3,4.251624]
[1722275160725,2.3908,3319.3,3318.5,3.56334]
[1722275160888,2.3908,3319.3,3318.6,0.06025304]
[1722275161088,2.3908,3319.3,3318.7,0.55]
[1722275161310,2.3908,3319.3,3318.8,0.06025304]
[1722275161623,2.3908,3319.3,3318.6,0.3073593]
[1722275161624,2.3908,3319.3,3318.9,0.55]
[1722275162301,2.3908,3319.3,3319.0,0.06025307]
[1722275162499,2.3908,3319.3,3319.1,0.55]
[1722275162902,2.3908,3319.3,3319.1,0.906295]
[1722275163396,0.005,3319.4,3319.1,3.919145]
[1722275163913,0.005,3319.4,3319.2,0.06024549]
[1722275164226,0.005,3319.4,3319.3,3.56268]
[1722275164384,0.005,3319.4,3319.3,6.63560279]
[1722275164584,0.005,3319.4,3319.3,7.33479257]
[1722275165030,0.005,3319.4,3319.3,4.32211257]
[1722275165203,0.005,3319.4,3319.3,7.27454978]
[1722275165398,0.005,3319.4,3319.3,14.47832978]
[1722275165737,0.15442,3321.0,3320.0,3.01198]
[1722275165882,0.15442,3321.0,3320.1,3.301198]
[1722275166150,0.15442,3321.0,3319.3,5.74918978]
[1722275166151,2.3712,3320.5,3320.2,0.55]
[1722275166500,0.15442,3321.0,3320.3,3.07196007]
[1722275166705,0.15442,3321.0,3320.4,0.55]
[1722275166866,2.3712,3320.5,3320.2,0.55]
[1722275167774,2.3712,3320.9,3320.3,3.0117]
[1722275167945,2.3712,3320.9,3320.4,0.55]
[1722275168592,2.3712,3320.9,3319.1,0.356295]
[1722275168593,5.3825,3320.9,3319.2,3.01275]
[1722275168889,5.3825,3320.9,3319.4,3.01258]
[1722275168890,3.01143,3320.7,3319.4,3.01258]
[1722275169093,3.01143,3320.7,3319.5,3.0]
[1722275169311,5.38287,3320.5,3319.2,0.3031]
[1722275169593,3.01178,3320.3,3319.2,0.3031]
[1722275169801,5.3828,3320.5,3319.2,0.3031]
[1722275169802,0.301178,3320.2,3319.2,0.3031]
[1722275170021,0.301178,3320.2,3318.6,3.0133]
[1722275170022,2.467,3319.9,3318.6,3.3164]
[1722275170185,5.47914,3319.9,3318.6,3.0133]
[1722275170368,2.467,3319.9,3318.7,3.31455]
[1722275170716,2.467,3319.9,3319.0,3.01295]
[1722275171065,2.467,3319.9,3319.1,3.07308564]
[1722275171410,2.467,3319.9,3319.6,3.01239]
[1722275171567,2.467,3319.9,3319.7,0.06023893]
[1722275171763,2.467,3319.9,3319.7,0.36750182]
[1722275172022,2.4542,3320.6,3320.0,3.01197]
[1722275172310,2.4542,3320.6,3320.1,0.61022947]
[1722275173388,2.4542,3320.6,3320.2,3.0720895]
[1722275173584,2.4542,3320.6,3320.3,0.61022692]
[1722275173785,2.4542,3320.6,3320.3,0.55]
[1722275174240,2.4542,3320.6,3319.9,0.06022908]
[1722275174241,2.4542,3320.6,3320.1,3.01195]
[1722275174381,2.4542,3320.6,3320.2,0.96642226]
[1722275174589,2.4542,3320.6,3320.3,0.61022726]
[1722275175087,0.005,3320.6,3320.3,3.62196726]
[1722275175296,0.005,3320.6,3320.3,0.61022726]
[1722275175638,0.005,3320.6,3320.4,0.06022441]
[1722275175799,0.005,3320.6,3320.5,0.55]
[1722275176197,0.005,3320.6,3320.5,0.91219944]
[1722275176409,0.005,3320.6,3320.5,0.55]
[1722275177898,0.005,3320.6,3320.5,3.56159]
[1722275178098,0.005,3320.6,3320.5,6.57318]
[1722275179197,0.005,3320.6,3320.5,9.58477]
[1722275179443,0.005,3320.6,3320.5,19.46046]
[1722275179754,0.13600135,3321.0,3320.9,9.33679]
[1722275179904,0.13600135,3321.0,3320.9,12.88679]
[1722275180506,0.13600135,3321.0,3320.9,9.87556]
[1722275180703,0.13600135,3321.0,3320.9,0.55]
[1722275180931,0.13600135,3321.0,3320.6,3.56149]
[1722275181138,0.13600135,3321.0,3320.7,0.356149]
[1722275181440,0.13600135,3321.0,3320.9,3.01123]
[1722275181629,0.13600135,3321.0,3320.7,3.367499]
[1722275181826,0.13600135,3321.0,3320.9,3.31433]
[1722275181999,0.13600135,3321.0,3320.8,3.01131]
[1722275182202,0.13600135,3321.0,3320.9,0.3367459]
[1722275182419,2.46730135,3321.0,3320.3,3.01177]
[1722275182635,2.46730135,3321.0,3320.1,3.01192]
[1722275182832,2.46730135,3321.0,3320.3,3.31481]
[1722275183152,2.46730135,3321.0,3319.7,3.561]
[1722275183455,2.46730135,3321.0,3319.8,3.01222]
[1722275183601,2.46730135,3321.0,3320.6,3.01142]
[1722275183602,0.13600135,3321.0,3320.6,3.01142]
[1722275183810,0.13600135,3321.0,3320.9,3.01123]
[1722275184002,0.13600135,3321.0,3320.9,6.87556]
[1722275184641,0.13600135,3321.0,3320.9,3.86433]
[1722275184854,0.13600135,3321.0,3320.9,4.551895]
[1722275185025,0.13600135,3321.0,3320.9,1.237565]
[1722275185643,0.13600135,3321.0,3320.9,0.55]
[1722275185806,0.13600135,3321.0,3320.8,3.5613]
[1722275186007,0.13600135,3321.0,3320.8,3.8644]
[1722275186208,0.13600135,3321.0,3320.9,3.01123]
[1722275186420,0.13600135,3321.0,3320.9,3.56123]
[1722275186640,0.13600135,3321.0,3320.9,4.302663]
[1722275187044,0.13600135,3321.0,3320.9,4.6659765]
[1722275187242,0.13600135,3321.0,3320.9,7.3741065]
[1722275187460,0.03499232,3321.0,3320.9,7.3741065]
[1722275187932,0.03499232,3321.0,3320.9,4.302663]
[1722275188129,0.03499232,3321.0,3320.9,4.605763]
[1722275188518,0.03499232,3321.0,3320.9,4.302663]
[1722275188750,0.03499232,3321.0,3320.9,7.313893]
[1722275189052,0.03499232,3321.0,3320.9,7.67720441]
[1722275189342,0.03499232,3321.0,3320.9,7.37410441]
[1722275190109,0.03499232,3321.0,3320.9,11.88533441]
[1722275190468,0.03499232,3321.0,3320.9,14.88533441]
[1722275190810,0.005,3322.4,3320.9,7.86012128]
[1722275191016,0.005,3322.4,3322.1,3.01008]
[1722275191572,0.005,3322.4,3322.0,3.0102]
[1722275191852,0.005,3322.4,3321.4,6.31239]
[1722275191853,0.005,3322.4,3321.8,3.01035]
[1722275192064,0.005,3322.4,3321.9,0.06019441]
[1722275192206,0.005,3322.4,3321.9,3.07050441]
[1722275192568,0.005,3322.4,3322.0,0.33722044]
[1722275192704,0.005,3322.4,3322.1,3.01012]
[1722275193036,0.005,3322.4,3322.2,0.55]
[1722275193209,0.005,3322.4,3322.1,0.55]
[1722275193544,0.005,3322.4,3322.2,3.07023012]
[1722275193749,0.005,3322.4,3322.3,0.36202301]
[1722275193908,0.005,3322.4,3322.3,0.97221189]
[1722275194837,0.005,3322.4,3322.3,0.61018888]
[1722275195736,0.005,3322.4,3322.3,0.55]
[1722275195938,0.005,3322.4,3321.2,10.35092]
[1722275196137,0.005,3322.4,3321.4,3.01075]
[1722275196360,0.005,3322.4,3321.5,0.06019991]
[1722275196575,0.005,3322.4,3322.0,3.01017]
[1722275196903,0.005,3322.4,3322.1,0.06019158]
[1722275197198,0.005,3322.4,3321.7,0.06019156]
[1722275197199,2.4978,3322.3,3321.7,0.06019156]
[1722275197677,2.4978,3322.3,3321.7,3.07068156]
[1722275197983,2.4978,3322.3,3321.8,0.06019775]
[1722275198484,2.4978,3322.3,3321.9,3.31732877]
[1722275198648,0.005,3322.4,3322.0,3.07036522]
[1722275198832,0.005,3322.4,3322.1,0.61019079]
[1722275199239,0.005,3322.4,3322.1,0.55]
[1722275199467,0.005,3322.4,3322.0,3.56023]
[1722275199651,0.005,3322.4,3322.1,0.44692042]
[1722275199830,0.005,3322.4,3322.2,0.61019272]
[1722275200031,0.005,3322.4,3322.3,0.06019055]
[1722275200235,0.005,3322.4,3322.3,3.62015055]
[1722275201337,0.005,3322.4,3322.3,6.56992]
[1722275201531,0.005,3322.4,3322.3,9.56992]
[1722275201774,0.005,3322.4,3322.3,10.977921]
[1722275202345,0.005,3322.4,3322.3,13.987881]
[1722275203732,0.005,3322.4,3322.3,10.977921]
[1722275204564,0.005,3322.4,3322.3,7.417961]
[1722275204761,0.005,3322.4,3322.3,9.01992]
[1722275205886,0.00129351,3322.4,3322.3,12.02988]
[1722275206087,0.00129351,3322.4,3322.3,12.88158]
[1722275206288,2.3359,3323.6,3323.5,3.00887]
[1722275206590,2.4634,3324.2,3323.6,3.00877]
[1722275206759,2.4634,3324.2,3323.7,3.0688438]
[1722275206960,2.4634,3324.2,3323.8,0.0601638]
[1722275207178,2.4634,3324.2,3323.9,3.00843]
[1722275207496,2.4634,3324.2,3323.6,0.60177]
[1722275207497,2.4634,3324.2,3323.6,3.61054]
[1722275207716,2.4634,3324.2,3323.4,3.0089]
[1722275208220,2.4634,3324.2,3322.3,4.50996]
[1722275208221,5.4717,3324.2,3322.3,4.50996]
[1722275208392,5.4717,3324.2,3322.7,3.00959]
[1722275208393,2.2509,3324.2,3322.7,3.00959]
[1722275208718,2.2509,3324.2,3321.9,1.8017]
[1722275208719,2.2509,3323.8,3322.6,3.00968]
[1722275208889,2.2509,3323.8,3322.7,0.300968]
[1722275209286,2.2509,3323.8,3322.3,3.00988]
[1722275209485,2.2542,3323.7,3322.5,3.00971]
[1722275209806,2.2542,3323.7,3322.6,3.00968]
[1722275210177,2.2542,3323.6,3321.9,1.5]
[1722275210385,2.4971,3323.4,3321.6,10.35053]
[1722275210586,2.4971,3322.9,3321.6,3.01053]
[1722275210904,2.4971,3322.9,3321.4,3.01075]
[1722275210905,2.4971,3322.8,3321.4,3.01076]
[1722275211104,2.4971,3322.8,3321.5,3.01068]
[1722275211320,2.4971,3322.8,3321.9,3.01032]
[1722275211618,2.4971,3322.8,3321.7,3.01044]
[1722275211820,2.4971,3322.8,3321.6,3.311658]
[1722275212019,2.4971,3322.8,3321.7,3.01043]
[1722275212316,2.4971,3322.8,3321.8,3.0]
[1722275212526,2.4971,3322.8,3321.9,0.3]
[1722275212725,2.4971,3322.8,3321.6,0.602768]
[1722275212726,2.4971,3322.8,3322.3,3.00989]
[1722275213017,2.4971,3322.8,3322.5,3.00971]
[1722275213187,2.4971,3322.8,3322.6,3.06978482]
[1722275213388,2.4971,3322.8,3322.7,3.0096]
[1722275213588,2.4971,3322.8,3322.7,3.61978484]
[1722275213918,2.4971,3322.8,3322.7,1.21294448]
[1722275214131,2.4971,3322.8,3322.7,0.55]
[1722275214427,2.4971,3322.8,3322.2,3.01004]
[1722275214635,2.4971,3322.8,3322.0,3.01022]
[1722275214921,2.4971,3322.8,3321.8,3.01039]
[1722275214922,2.4971,3322.8,3322.1,3.01013]
[1722275215484,2.4971,3322.8,3322.3,3.00989]
[1722275215687,2.4971,3322.8,3322.5,3.00976]
[1722275215886,2.4971,3322.8,3322.7,3.0096]
[1722275216094,2.4971,3322.8,3322.7,3.5596]
[1722275216513,2.4971,3322.8,3322.7,0.55]
[1722275216726,2.397,3324.2,3322.7,3.5596]
[1722275216915,2.397,3324.0,3323.0,3.00929]
[1722275217230,2.397,3324.0,3323.1,0.55]
[1722275217432,2.397,3324.0,3323.2,0.06017535]
[1722275217928,2.397,3324.0,3323.1,0.55]
[1722275218085,2.397,3324.0,3323.2,3.00913]
[1722275218283,2.397,3324.0,3323.3,0.15468362]
[1722275218545,2.397,3324.0,3323.5,3.00887]
[1722275218877,2.397,3324.0,3323.6,0.64449972]
[1722275218992,2.397,3324.0,3323.6,0.09449972]
[1722275220141,3.00853,3323.9,3323.6,0.09449972]
[1722275220294,3.70641,3324.3,3323.6,0.09449972]
[1722275220295,2.608653,3323.8,3323.6,0.09449972]
[1722275221034,3.00869,3323.7,3323.6,0.09449972]
[1722275221534,5.617253,3323.8,3323.6,0.09449972]
[1722275221837,2.608653,3323.8,3323.6,0.09449972]
[1722275223259,5.617253,3323.8,3323.6,0.09449972]
[1722275223456,0.5617253,3323.7,3323.6,0.09449972]
[1722275224051,2.608653,3323.8,3323.6,0.09449972]
[1722275224052,5.617323,3323.8,3323.6,0.09449972]
[1722275224218,5.31839,3323.7,3323.6,0.09449972]
[1722275224723,2.3097,3323.7,3323.6,0.09449972]
[1722275226239,2.4188,3324.2,3323.7,3.00869]
[1722275226482,2.4188,3324.2,3323.7,0.06016676]
[1722275226809,2.4188,3324.2,3323.8,0.09449404]
[1722275228013,2.675221,3324.2,3323.8,0.09449404]
[1722275228229,6.825721,3324.2,3323.8,0.09449404]
[1722275228363,3.00844,3324.0,3323.8,0.09449404]
[1722275228567,5.42713,3324.1,3323.8,0.09449404]
[1722275228884,5.42731,3323.9,3323.8,0.09449404]
[1722275229073,6.588785,3323.9,3323.8,0.09449404]
[1722275229412,3.580275,3323.9,3323.8,0.09449404]
[1722275229716,2.4188,3323.9,3323.8,0.09449404]
[1722275231561,5.42731,3323.9,3323.8,0.09449404]
[1722275232174,2.4188,3323.9,3323.8,0.09449404]
[1722275232564,5.42731,3323.9,3323.8,0.09449404]
[1722275232900,6.270875,3323.9,3323.8,0.09449404]
[1722275233263,3.262365,3323.9,3323.8,0.09449404]
[1722275233477,6.270875,3323.9,3323.8,0.09449404]
[1722275233780,9.279385,3323.9,3323.8,0.09449404]
[1722275234781,5.33482,3323.2,3321.9,3.01031]
[1722275234977,0.843565,3323.9,3322.7,3.0096]
[1722275234978,6.61031027,3323.9,3322.7,3.0096]
[1722275235185,2.3256,3323.7,3322.7,3.0096]
[1722275235415,2.3256,3323.7,3322.8,3.06963637]
[1722275235581,2.3256,3323.7,3322.8,0.06018637]
[1722275235970,2.3256,3323.7,3322.8,3.06968637]
[1722275236313,2.3256,3323.7,3322.9,3.0094]
[1722275236667,2.3256,3323.7,3323.3,3.00898]
[1722275236868,2.3256,3323.7,3323.2,0.06017682]
[1722275237091,2.48561,3324.3,3323.4,3.00896]
[1722275237408,2.48561,3324.3,3323.3,0.61017428]
[1722275237409,0.09499548,3324.2,3323.3,0.61017428]
[1722275238299,0.09499548,3324.2,3323.5,3.00886]
[1722275238620,0.09499548,3324.2,3323.3,3.61922428]
[1722275239423,0.09499548,3324.2,3323.4,3.00896]
[1722275239715,0.09499548,3324.2,3323.3,3.55898]
[1722275240019,0.09499548,3324.2,3323.3,0.61017431]
[1722275240320,0.09499548,3324.2,3323.5,3.00887]
[1722275240464,0.09499548,3324.2,3323.6,3.61888879]
[1722275240667,0.09499548,3324.2,3323.6,3.06888879]
[1722275241268,0.09499548,3324.2,3323.4,3.00895]
[1722275241874,0.09499548,3324.2,3323.0,3.00932]
[1722275242079,0.25806055,3324.1,3323.1,3.55923]
[1722275242574,2.3781,3323.9,3322.8,3.00947]
[1722275242774,2.3781,3323.9,3322.7,3.00959]
[1722275242775,0.09499548,3323.8,3322.7,3.00959]
[1722275243111,0.09499548,3323.8,3322.5,0.3017]
[1722275243271,0.09499548,3323.8,3322.8,3.0095]
[1722275243474,0.09499548,3323.8,3323.1,3.00923]
[1722275243672,0.09499548,3323.8,3322.9,3.3103]
[1722275243892,0.09499548,3323.8,3323.0,3.00931]
[1722275244104,0.09499548,3323.8,3323.1,3.0092]
[1722275244317,0.09499548,3323.8,3323.2,3.06931078]
[1722275244606,0.09499548,3323.8,3323.2,3.31606108]
[1722275245941,0.09499548,3323.8,3323.2,0.30693108]
[1722275246229,0.09499548,3323.8,3322.9,3.00936]
[1722275246520,0.09499548,3323.8,3323.1,3.00917]
[1722275246689,0.09499548,3323.8,3323.2,3.55909]
[1722275247015,0.09499548,3323.8,3323.2,3.00909]
[1722275247221,0.09499548,3323.8,3323.0,3.55926]
[1722275247395,0.34230503,3323.8,3322.8,3.00944]
[1722275247595,0.34230503,3323.8,3322.9,0.55]
[1722275249036,0.34230503,3323.8,3322.8,0.55]
[1722275249192,2.4857,3323.7,3322.6,0.3017]
[1722275249391,0.5836615,3323.6,3322.5,3.00977]
[1722275249597,0.5836615,3323.6,3322.2,6.00997]
[1722275249598,0.5836615,3323.6,3322.8,3.00944]
[1722275249834,2.4857,3323.7,3322.9,3.00939]
[1722275250003,2.4857,3323.7,3322.5,3.00971]
[1722275250332,5.49439,3323.7,3322.4,3.00978]
[1722275250534,5.49439,3323.7,3322.5,3.00977]
[1722275250709,0.5836695,3323.6,3322.5,3.00977]
[1722275250910,0.5836695,3323.6,3322.3,3.0099]
[1722275251219,0.5836695,3323.6,3322.5,3.00977]
[1722275251419,2.4857,3323.7,3322.5,3.00977]
[1722275251634,0.09499548,3323.5,3322.7,3.00959]
[1722275251932,0.09499548,3323.5,3322.5,3.06989924]
[1722275252737,0.09499548,3323.5,3323.0,3.00932]
[1722275252964,0.09499548,3323.5,3323.1,3.00921]
[1722275253166,0.09499548,3323.5,3323.1,3.61703109]
[1722275253342,0.09499548,3323.5,3323.1,3.00916]
[1722275254485,0.09499548,3323.5,3322.9,3.00941]
[1722275254486,0.09499548,3323.5,3323.4,3.00896]
[1722275254967,0.09499548,3323.5,3323.4,3.55896]
[1722275255525,0.09499548,3323.5,3323.2,0.3017]
[1722275255887,0.09499548,3323.5,3322.8,3.0095]
[1722275255888,2.391,3323.4,3322.8,3.0095]
[1722275256028,2.391,3323.4,3322.2,10.35001]
[1722275256223,2.391,3323.4,3322.9,3.00935]
[1722275256449,2.391,3323.4,3322.8,3.00945]
[1722275256450,2.391,3323.4,3323.0,3.0093]
[1722275257393,2.391,3323.4,3322.8,3.0095]
[1722275257555,2.391,3323.4,3322.6,3.00966]
[1722275257556,2.391,3323.4,3322.7,3.00958]
[1722275257944,2.391,3323.4,3322.8,3.00949]
[1722275258292,2.63959955,3323.4,3322.6,3.00968]
[1722275258447,0.09499548,3323.3,3322.5,3.00977]
[1722275258641,0.09499548,3323.3,3322.4,3.31156]
[1722275258890,0.09499548,3323.3,3322.5,3.00977]
[1722275260040,0.09499548,3323.3,3322.6,0.61019098]
[1722275260265,0.09499548,3323.3,3322.8,3.00948]
[1722275260521,0.09499548,3323.3,3322.9,0.06018554]
[1722275260668,0.09499548,3323.3,3322.9,3.55938]
[1722275260872,0.09499548,3323.3,3323.1,3.00918]
[1722275261070,0.09499548,3323.3,3323.2,3.00914]
[1722275261441,0.09499548,3323.3,3322.8,0.3017]
[1722275261642,2.2787,3323.2,3322.5,3.00976]
[1722275262393,2.2787,3323.2,3322.3,0.3017]
[1722275262394,2.51606955,3323.2,3322.3,0.3017]
[1722275262548,0.09499548,3323.1,3322.5,3.00978]
[1722275262947,2.08411087,3324.9,3323.2,1.5]
[1722275263245,0.01180357,3325.0,3323.8,3.00858]
[1722275263486,0.01180357,3325.0,3323.9,3.0085]
[1722275263806,0.01180357,3325.0,3323.8,0.601736]
[1722275263807,0.01180357,3325.0,3324.0,3.0084]
[1722275263948,0.01180357,3325.0,3324.1,3.00832]
[1722275264383,0.01180357,3325.0,3324.2,3.00824]
[1722275265078,0.01180357,3325.0,3324.2,6.01648]
[1722275265395,0.01180357,3325.0,3324.2,7.168128]
[1722275265888,2.44930357,3325.0,3324.2,7.168128]
[1722275266738,2.44930357,3325.0,3324.2,1.151648]
[1722275267134,2.44930357,3325.0,3324.2,4.159888]
[1722275267425,2.44930357,3325.0,3324.0,0.3017]
[1722275267922,2.44930357,3325.0,3323.8,3.00857]
[1722275268084,2.44930357,3325.0,3323.9,3.1029912]
[1722275268282,2.44930357,3325.0,3324.0,0.09448835]
[1722275268283,5.45683357,3325.0,3324.0,0.09448835]
[1722275268482,3.00795,3324.6,3324.0,0.09448835]
[1722275268730,2.3056,3324.2,3324.0,0.09448835]
[1722275268941,0.245101,3324.1,3324.0,0.09448835]
[1722275269786,3.253431,3324.1,3324.0,0.09448835]
[1722275270197,5.632631,3324.1,3324.0,0.09448835]
[1722275270398,8.640961,3324.1,3324.0,0.09448835]
[1722275270821,2.3792,3324.1,3324.0,0.09448835]
[1722275271635,5.38753,3324.1,3324.0,0.09448835]
[1722275272200,8.56653,3324.1,3324.0,0.09448835]
[1722275272405,11.57486,3324.1,3324.0,0.09448835]
[1722275272599,2.3809,3323.6,3322.4,3.00982]
[1722275272934,2.3809,3323.6,3322.5,0.39551301]
[1722275273135,2.3809,3323.6,3322.9,3.00932]
[1722275273337,2.3809,3323.6,3323.0,0.09451679]
[1722275275950,5.38974,3323.6,3323.0,0.09451679]
[1722275277036,3.00888,3323.5,3323.0,0.09451679]
[1722275277851,3.00902,3323.4,3323.0,0.09451679]
[1722275279647,0.538978,3323.5,3323.0,0.09451679]
[1722275279648,8.51796,3323.1,3323.0,0.09451679]
[1722275280256,5.50873,3323.1,3323.0,0.09451679]
[1722275281018,2.4995,3323.1,3323.0,0.09451679]
[1722275282056,3.00834,3324.1,3323.0,0.09451679]
[1722275282270,2.3884,3324.0,3323.0,0.09451679]
[1722275282436,2.3884,3324.0,3323.1,3.00923]
[1722275282618,2.3884,3324.0,3323.2,3.31950468]
[1722275283066,2.3884,3324.0,3323.2,0.31037468]
[1722275283285,2.3884,3324.0,3323.4,3.00889]
[1722275283643,0.14541,3324.3,3323.4,3.00889]
[1722275284191,0.14541,3324.3,3323.3,0.06017773]
[1722275284337,3.15357,3324.3,3323.1,3.55922]
[1722275284543,0.14541,3324.3,3323.2,0.49005478]
[1722275284763,0.14541,3324.3,3323.3,0.09450826]
[1722275285389,3.00843,3324.0,3323.3,0.09450826]
[1722275285589,3.00832,3324.2,3323.3,0.09450826]
[1722275285758,0.315373,3324.1,3323.3,0.09450826]
[1722275286189,0.14541,3324.3,3323.3,0.09450826]
[1722275286694,2.481,3324.2,3323.3,0.09450826]
[1722275287010,3.00848,3324.0,3323.3,0.09450826]
[1722275287292,5.48926,3324.2,3323.3,0.09450826]
[1722275287448,2.481,3324.2,3323.3,0.09450826]
[1722275287642,2.481,3324.2,3323.5,3.00881]
[1722275287845,2.481,3324.2,3323.6,3.309651]
[1722275288085,0.14541,3324.3,3323.6,3.309651]
[1722275288086,0.14541,3324.3,3323.6,0.300881]
[1722275288465,0.14541,3324.3,3323.6,3.309651]
[1722275288664,0.14541,3324.3,3323.8,3.00854]
[1722275288876,0.14541,3324.3,3323.9,3.00849]
[1722275289192,0.14541,3324.3,3324.0,0.601703]
[1722275290007,0.14541,3324.3,3324.1,0.09448551]
[1722275290297,0.14541,3324.3,3324.2,3.00824]
[1722275290447,0.14541,3324.3,3324.2,6.17112379]
[1722275291389,0.14541,3324.3,3324.2,6.72112379]
[1722275291563,0.14541,3324.3,3324.2,7.45340647]
[1722275291778,0.14541,3324.3,3324.2,7.75510647]
[1722275292594,0.14541,3324.3,3324.2,7.69494535]
[1722275293850,0.14541,3324.3,3324.2,10.70318535]
[1722275294891,1e-05,3324.3,3324.2,19.67802535]
[1722275295099,0.01180357,3325.0,3324.9,6.0152]
[1722275295311,0.01180357,3325.0,3324.9,7.467485]
[1722275295470,0.01180357,3325.0,3324.9,4.459885]
[1722275295793,0.01180357,3325.0,3324.9,0.902285]
[1722275295960,0.01180357,3325.0,3324.8,3.00761]
[1722275296161,0.01180357,3325.0,3324.9,3.06774851]
[1722275296361,0.01180357,3325.0,3324.9,3.0076]
[1722275296579,0.01180357,3325.0,3324.9,3.5576]
[1722275296772,0.01180357,3325.0,3324.9,6.62534401]
[1722275296952,0.01180357,3325.0,3324.9,4.28027841]
[1722275297977,0.01180357,3325.0,3324.9,4.2201344]
[1722275298605,0.01180357,3325.0,3324.9,4.31459718]
[1722275298921,0.01180357,3325.0,3324.9,7.32219718]
[1722275299125,0.01180357,3325.0,3324.9,4.31459718]
[1722275299429,0.01180357,3325.0,3324.9,7.32219718]
[1722275300940,0.01180357,3325.0,3324.9,10.63149718]
[1722275301085,0.01180357,3325.0,3324.9,7.62389718]
[1722275301612,0.01180357,3325.0,3324.9,10.63149718]